Cogmind - Beta 14 @@@ ROGUE MODE // 2024.08.24 @ 13:14:01 Player: cabin Result: Destroyed by G-47 Trooper with Particle Gun Performance ------------- Evolutions (1) 500 Regions Visited (3) 600 Robots Destroyed (22) 110 Value Destroyed (514) 514 Prototype IDs (0) 0 Alien Tech Used (0) 0 Bonus (0) 0 TOTAL SCORE: 1724 Bonus ------- None Cogmind --------- Core Integrity 0/400 Matter 20/300 Energy 0/100 System Corruption 0% Temperature Cool (9) Movement Core (50) Location -9/Materials Parts ------- > --- POWER (1) -------- (None) > --- PROPULSION (2) --- (None) > --- UTILITY (4) ------ Trap Extractor (0/4) > --- WEAPON (2) ------- (None) > --- INVENTORY (5) ---- (None) Peak State ------------ > --- POWER ------------ Ion Engine > --- PROPULSION ------- Light Treads Aluminum Leg > --- UTILITY ---------- Small Storage Unit Large Storage Unit Structural Scanner Weapon Shielding > --- WEAPON ----------- Light Assault Rifle Mini Grenade Launcher > --- INVENTORY -------- Ion Engine Flight Unit Small Laser Particle Gun Assault Rifle [Rating: 10] Favorites ----------- Power Ion Engine Engine Ion Engine Propulsion Light Treads Treads Light Treads Leg Aluminum Leg Flight Unit Flight Unit Utility Small Storage Unit Device Trap Extractor Storage Small Storage Unit Protection Weapon Shielding Weapon Light Assault Rifle Energy Gun Particle Gun Ballistic Gun Light Assault Rifle Launcher Mini Grenade Launcher Build | -11 -10 -10 -9 ------- Run | Yrd Mat Min Mat Slots Evolved 2 | . . . 2 Power . | . . . . Propulsion . | . . . . Utility 2 | . . . 2 Weapon . | . . . . Parts Attached 28 | 9 1 . 18 Power 6 | 1 . . 5 Engine 6 | 1 . . 5 Core . | . . . . Reactor . | . . . . Propulsion 8 | 4 . . 4 Treads 4 | 2 . . 2 Leg 3 | 2 . . 1 Wheel . | . . . . Hover . | . . . . Flight 1 | . . . 1 Utility 8 | 1 1 . 6 Device 5 | . . . 5 Storage 2 | 1 1 . . Processor . | . . . . Hackware . | . . . . Protection 1 | . . . 1 Artifact . | . . . . Weapon 6 | 3 . . 3 Energy Gun 2 | 1 . . 1 Energy Cannon . | . . . . Ballistic Gun 2 | 2 . . . Ballistic Cannon . | . . . . Launcher 2 | . . . 2 Special Weapon . | . . . . Impact Weapon . | . . . . Slashing Weapon . | . . . . Piercing Weapon . | . . . . Special Melee Weapon . | . . . . Unidentified Prototypes . | . . . . Parts Lost 12 | . . . 12 Power 4 | . . . 4 Propulsion 4 | . . . 4 Utility 2 | . . . 2 Weapon 2 | . . . 2 Highest Loss Streak 3 | . . . 3 To Critical Strikes . | . . . . Average Slot Usage (%) 76 | . 99 100 68 Engine 8 | . 14 14 6 Treads 13 | . 28 28 8 Leg 3 | . . . 5 Device 3 | . . . 5 Storage 17 | . 27 28 14 Protection 6 | . . . 8 Energy Gun 1 | . . . 2 Ballistic Gun 12 | . 28 28 7 Launcher 6 | . . . 9 Peak Build Rating 10 | 6 7 7 10 Average Rating 7 | 5 6 7 7 On Entrance 5 | . 6 7 7 Naked Turns . | . . . . Heaviest Build 34 | 13 33 33 34 Greatest Support 40 | 40 40 40 40 Greatest Overweight (x) 10 | . . . 10 Average Overweight (x) . | . . . . Largest Inventory Capacity 15 | 8 15 15 15 Average Capacity 11 | 7 14 15 11 Most Carried 7 | 3 5 5 7 Average Carried 3 | 2 3 5 3 Final Capacity 15 | 8 15 15 5 Final Carried 5 | 3 5 5 . Class Distribution -------------------- 100% | Mutant Dominant Class ---------------- Mutant | -10/Materials Mutant | -10/Mines Mutant | -9/Materials Resources | -11 -10 -10 -9 ----------- Run | Yrd Mat Min Mat Matter Collected 379 | 157 40 . 182 Remotely . | . . . . Salvage Created 555 | . 91 . 464 Parts 30 | . 6 . 24 Haulers Intercepted . | . . . . Recyclers Shooed . | . . . . Parts Field Recycled . | . . . . Retrieved Matter . | . . . . Parts Self-Destructed . | . . . . Prevented . | . . . . Kills | -11 -10 -10 -9 ------- Run | Yrd Mat Min Mat Combat Hostiles Destroyed 15 | . 2 . 13 Guns 3 | . 2 . 1 AOE 12 | . . . 12 Classes Destroyed 8 | . 1 . 7 Worker 1 | . . . 1 Builder 1 | . . . 1 Recycler 3 | . . . 3 Mechanic 1 | . . . 1 Watcher 1 | . . . 1 Swarmer 6 | . . . 6 Grunt 7 | . 2 . 5 Sentry 2 | . . . 2 Best Kill Streak 5 | . 2 . 5 Combat Bots Only 3 | . 2 . 3 Max Kills in Single Turn 2 | . 1 . 2 Gunslinging . | . . . . Exploded 2 | . . . 2 Melee . | . . . . Uniques/NPCs Destroyed . | . . . . Combat | -11 -10 -10 -9 -------- Run | Yrd Mat Min Mat Hostile Shots Fired 122 | . 20 . 102 Missed 36 | . 5 . 31 Damage Taken 1412 | . 199 . 1213 Core 413 | . . . 413 Absorbed by Shields . | . . . . Redirected to Shielding 54 | . . . 54 Core Remaining (%) 100 | 100 . 100 . Volleys Fired 30 | . 10 . 20 Largest 2 | . 2 . 2 Hottest 95 | . 40 . 95 Shots Fired 58 | . 20 . 38 Gun 39 | . 20 . 19 Cannon . | . . . . Launcher 19 | . . . 19 Special . | . . . . Kinetic 33 | . 20 . 13 Thermal 6 | . . . 6 Explosive 19 | . . . 19 Electromagnetic . | . . . . Robot Hit Streak 13 | . 7 . 13 Robot Miss Streak 3 | . 2 . 3 Penetration Max . | . . . . Secondary Targets 1 | . 1 . . Max Gunslinging Chain 1 | . 1 . . Shots Hit Robots 40 | . 14 . 26 Core Hits 38 | . 6 . 32 Critical Kills . | . . . . Critical Parts Destroyed . | . . . . Critical Strikes . | . . . . Melee Attacks . | . . . . Impact . | . . . . Slashing . | . . . . Piercing . | . . . . Sneak Attacks . | . . . . Combat Hostiles . | . . . . Follow-up Attacks . | . . . . Damage Inflicted 1534 | . 152 . 1382 Guns 294 | . 152 . 142 Cannons . | . . . . Explosions 1238 | . . . 1238 Melee . | . . . . Ramming 2 | . . . 2 Kinetic 217 | . 152 . 65 Thermal 140 | . . . 140 Explosive 1175 | . . . 1175 Electromagnetic . | . . . . Impact . | . . . . Slashing . | . . . . Piercing . | . . . . Highest Corruption . | . . . . Average Corruption . | . . . . Corruption Purged . | . . . . Corruption Blocked . | . . . . Overload Shots . | . . . . Overflow Damage 61 | . . . 61 Projectiles . | . . . . Explosions 61 | . . . 61 Melee . | . . . . Knockbacks . | . . . . Impact . | . . . . Kinetic . | . . . . Secondary . | . . . . Self-Inflicted Damage 403 | . . . 403 Shots 11 | . . . 11 Rammed 1 | . . . 1 Targets Rammed 1 | . . . 1 Kicked . | . . . . Crushed . | . . . . Highest Temperature 60 | . 40 . 60 Average Temperature 14 | . 14 . 13 Received Heat Transfer 477 | . 135 . 342 Siege Activations . | . . . . Robots Corrupted . | . . . . Combat Hostiles . | . . . . Parts Fried . | . . . . Impact Corruptions . | . . . . Robots Melted . | . . . . Combat Hostiles . | . . . . Parts Melted . | . . . . Heat Transferred 235 | . . . 235 Parts Sabotaged . | . . . . Parts Stolen . | . . . . Parts Stripped . | . . . . Power Chain Reactions . | . . . . Alert | -11 -10 -10 -9 ------- Run | Yrd Mat Min Mat Peak Influence 372 | . 50 19 372 Initial 19 | . . 19 7 Average 111 | . 20 19 176 Maximum Alert Level 1 | . . . 1 Low Security (%) 75 | 100 100 100 59 Level 1 24 | . . . 40 Level 2 . | . . . . Level 3 . | . . . . Level 4 . | . . . . Level 5 . | . . . . High Security . | . . . . Max Security . | . . . . Squads Dispatched 2 | . . . 2 Investigation . | . . . . Extermination . | . . . . Reinforcement 2 | . . . 2 Assault . | . . . . Garrison . | . . . . Intercept . | . . . . Searches Triggered . | . . . . Construction Impeded . | . . . . Haulers Reinforced . | . . . . Active Scanning Responses . | . . . . Cargo Convoy Interrupts . | . . . . Stealth | -11 -10 -10 -9 --------- Run | Yrd Mat Min Mat Distress Signals 7 | . . . 7 Communications Jammed . | . . . . Distress Signals . | . . . . Times Spotted 29 | . 3 5 21 Peak Tracking Total 19 | . 2 19 7 Tactical Retreats 3 | . . . 3 Traps | -11 -10 -10 -9 ------- Run | Yrd Mat Min Mat Traps Triggered . | . . . . Indirectly . | . . . . Trap Hack Attempts . | . . . . Triggered . | . . . . Disarmed . | . . . . Reprogrammed . | . . . . Reused . | . . . . Traps Extracted . | . . . . Installed . | . . . . Triggered . | . . . . Machines | -11 -10 -10 -9 ---------- Run | Yrd Mat Min Mat Machines Disabled 6 | . . . 6 Max in Single Turn 2 | . . . 2 Machines Repaired . | . . . . Machines Dismantled . | . . . . Machines Sabotaged . | . . . . Overloaded Fab Kills . | . . . . Hacking | -11 -10 -10 -9 --------- Run | Yrd Mat Min Mat Machines Accessed . | . . . . Terminals . | . . . . Fabricators . | . . . . Repair Stations . | . . . . Recycling Units . | . . . . Scanalyzers . | . . . . Garrison Access . | . . . . Total Hacks . | . . . . Successful . | . . . . Failed . | . . . . Catastrophic . | . . . . Database Lockouts . | . . . . Manual . | . . . . Terminals . | . . . . Fabricators . | . . . . Repair Stations . | . . . . Recycling Units . | . . . . Scanalyzers . | . . . . Garrison Access . | . . . . Terminal Hacks . | . . . . Fabricator Hacks . | . . . . Repair Station Hacks . | . . . . Recycling Unit Hacks . | . . . . Scanalyzer . | . . . . Garrison Access Hacks . | . . . . Unauthorized Hacks . | . . . . Terminals . | . . . . Fabricators . | . . . . Repair Stations . | . . . . Recycling Units . | . . . . Scanalyzers . | . . . . Garrison Access . | . . . . Data Cores Recovered . | . . . . Used . | . . . . Hacking Detections . | . . . . Full Trace Events . | . . . . Feedback Events . | . . . . Feedback Blocked . | . . . . Robot Schematics Acquired . | . . . . Robots Built . | . . . . Authchips . | . . . . Time . | . . . . Total Robot Build Rating . | . . . . Part Schematics Acquired . | . . . . Parts Built . | . . . . Authchips . | . . . . Time . | . . . . Total Part Build Rating . | . . . . Parts Repaired . | . . . . Time . | . . . . Parts Recycled . | . . . . Recycled Matter . | . . . . Retrieved Matter . | . . . . Retrieved Components . | . . . . Parts Scanalyzed . | . . . . Part Schematics Acquired . | . . . . Parts Damaged . | . . . . Bothacking | -11 -10 -10 -9 ------------ Run | Yrd Mat Min Mat Used RIF Installer . | . . . . Robots Hacked . | . . . . Non-combat . | . . . . Combat . | . . . . Robot Hacks Applied . | . . . . Relay Couplers Released . | . . . . Fabnet Peak Effective % . | . . . . Robots Rewired . | . . . . Allies Hacked . | . . . . Hacks Repelled . | . . . . Allies | -11 -10 -10 -9 -------- Run | Yrd Mat Min Mat Total Allies . | . . . . Largest Group . | . . . . Highest-Rated Group . | . . . . Highest-Rated Ally . | . . . . Total Orders . | . . . . Ally Attacks . | . . . . Total Damage . | . . . . Kills . | . . . . Allies Corrupted . | . . . . Allies Melted . | . . . . Intel | -11 -10 -10 -9 ------- Run | Yrd Mat Min Mat Robot Analysis Total . | . . . . Derelict Logs Recovered . | . . . . Drone Launches . | . . . . Drone Recoveries . | . . . . Exploration | -11 -10 -10 -9 ------------- Run | Yrd Mat Min Mat Turns Passed 1098 | 198 161 72 667 Spaces Moved 520 | 57 80 46 337 Core 111 | 13 . . 98 Treads 348 | 41 80 46 181 Legs 3 | 3 . . . Wheels . | . . . . Hover . | . . . . Flight 58 | . . . 58 Fastest Speed 40 | 50 160 160 40 Average Speed 155 | 132 160 160 157 Slowest Speed 550 | 160 160 160 550 Overloaded Moves . | . . . . Propulsion Burnouts . | . . . . Robots Hopped . | . . . . Cave-ins Triggered . | . . . . Exploration Rate (%) 18 | 5 12 14 42 Regions Visited 3 Branch Regions 1 Pre-discovered Areas . | . . . . Known Exits Taken . | . . . . Unknown Exits Taken 3 | 1 1 1 . Scrap Searched . | . . . . Spaces Dug . | . . . . Terrain Destroyed 127 | . . . 127 Melee . | . . . . Projectile . | . . . . AOE 127 | . . . 127 Terrain Rammed . | . . . . Walls Destroyed . | . . . . Machines Disabled . | . . . . Actions | -11 -10 -10 -9 --------- Run | Yrd Mat Min Mat Total 758 | 176 96 45 441 Wait 156 | 108 . . 48 Move 517 | 56 79 45 337 Hop . | . . . . Pick Up 6 | . 4 . 2 Fast Attach 19 | 9 1 . 9 Attach 8 | . . . 8 Detach 9 | 3 . . 6 Swap 1 | . . . 1 Drop 11 | . 2 . 9 Fire 30 | . 10 . 20 Melee . | . . . . Ram . | . . . . Kick . | . . . . Crush 1 | . . . 1 Escape Stasis . | . . . . Rewire . | . . . . Trap . | . . . . Miscellaneous . | . . . . Route ------- -11/Scrapyard -10/Materials -10/Mines -9/Materials (discovered 1 exit: [*Min]) History --------- Turn | Location | Event 10 | -11/Scrapyard | Discovered new exit (range 14) 199 | -11/Scrapyard | Entered Materials 201 | -10/Materials | Discovered new exit (range 14) 304 | -10/Materials | Build established: Mutant 360 | -10/Materials | Entered Mines 404 | -10/Mines | Discovered new exit (range 13) 429 | -10/Mines | Assembled infested the area 432 | -10/Mines | Entered Materials 432 | -9/Materials | Evolved 2 slots: Utility x2 872 | -9/Materials | Discovered new exit (range 13) 888 | -9/Materials | Core integrity fell below 50% 933 | -9/Materials | Lost 3 parts (2p1n) 995 | -9/Materials | Core integrity fell below 20% 1090 | -9/Materials | Lost 3 parts (1u2w) 1099 | -9/Materials | Destroyed by G-47 Trooper with Particle Gun Last Messages --------------- 00908_ Acquired Trap Extractor. 00909_ U-05 Engineer lays Concrete. 00910_ K-01 Serf collects debris. 00911_ U-05 Engineer lays Concrete. 00913_ K-01 Serf collects debris. 00923_ K-01 Serf cleans the Matter Filter. 00965_ G-34 Mercenary destroyed. 00989_ Structural Scanner destroyed. 01007_ Acquired 21 matter. 01011_ G-34 Mercenary destroyed. 01014_ Lgt. Treads destroyed. 01047_ T-07 Excavator is excavating. 01057_ Weapon Shielding destroyed. 01057_ Particle Gun destroyed. 01057_ Terminal disabled. 01059_ Mni. Grenade Launcher destroyed. 01060_ T-07 Excavator is excavating. 01064_ Connecting with Terminal... 01064_ Current location identified: Materials 01097_ Critical hit (Burn: +37). Map ----- +----------------------------------------------------+ | ?????????????? ???????????????????## | | ?????????????? #??????????????????## """" | | ?????????????? #?????????????????? # ?"""" | | ?????????????? #????????????????????? """" | | ?????????????? #?????????????????? # """" | | ?????????????? #?????????????????? # """" | | ???????????### #?????????????????? + | | ???????????# #?????????????????? # | | ???????????# #???????########???## """" | | ???????????# #???????# ###### """" | | ???????????# ##??????# ###### """" | | ???????????# T#??????# + """" | | ???????????# #???????# # ## """" | | ############ ##??????# # ## | | # ]! # #??????# # ## | | # ]! # ####### ## ## | | # ! + T ## | | # # ## #### ##+## "" | | # ] # # #????"" # "T | | # ### ### ##??????" # "" | | # #?# #?####???# ?? # | | # #?# #?????#### # | | ####+##/###?# ############## ## ### | | ???# #???# % % # | | ???# #???# # = # | | ???# ##### @ ### # # | | ???# g #?### + | | ??##+########+########+##+#??## """ """ ## | | ?# # #???????????## """ """ ## | | ?# # #???????????## """ """ ## | | ?# # #???????????## ## | | ?# # #???????????############# | | ?#################???????????############# | | | | | | | | | | | | | | | | | | | | | | | | | | | | | | | | | | | +----------------------------------------------------+ Best States ------------- Heat Dissipation 28 Energy Generation 10 Energy Capacity 250 Matter Stores 167 Matter Capacity 300 Sight Range 16 Terrain Scan Density 10 Weapon Shielding 33 Evasion (%) 62 Recoil Reduction 2 Trap Extractor Capacity 4 Item Schematics ----------------- None Robot Schematics ------------------ None Fabricated ------------ Nothing Alien Tech Used ----------------- None Achievements -------------- None Challenges ------------ None Game ------ Seed AntigravMediumMatter Manual? 0 Play Time 00:17:22 Cumulative 9.2 hours Start 2024.08.24 @ 12:55:28 End 2024.08.24 @ 13:14:01 Sessions 1 Manual Loads 0 Difficulty Rogue Special Mode None Game No. 24 Rogue 23 Adventurer 1 Explorer 0 Win Type - Total 0 Types 0/0/0/0/0/0/0/0/0 Lore% 3 Gallery% 13 Achievement% 12 Wizard Run 0 Options --------- Layout 2 ASCII 0 Keyboard 1 Movement Numpad Keybinds 0 Fullscreen 1 Font 24/Smallcaps Map View 50x44 Zoom Use 0% Tactical HUD 1 Map Filters NONE Filters NONE Steam 1 RUN: 475c30ab-5e59-4cae-80b2-273f7e404680